bitfinex/quotes_SOLUSD_20250731
["timestamp","ask_amount","ask_price","bid_price","bid_amount"]
[1753945038600,1.41252661,181.84,181.83,61.44432649]
[1753945038897,5.12748654,181.84,181.83,61.44432649]
[1753945039195,1.41252661,181.84,181.83,61.44432649]
[1753945039397,5.12748654,181.84,181.83,61.44432649]
[1753945039597,1.41252661,181.84,181.83,61.44432649]
[1753945039897,5.12748654,181.84,181.83,60.74432649]
[1753945040084,1.41252661,181.84,181.83,60.74432649]
[1753945040289,5.12748654,181.84,181.83,60.74432649]
[1753945040599,5.84748654,181.84,181.83,55.22468397]
[1753945041191,5.84748654,181.84,181.83,0.06]
[1753945041396,5.84748654,181.84,181.83,38.44]
[1753945042604,37.34682661,181.84,181.82,0.06]
[1753945042800,9.05865985,181.83,181.82,0.06]
[1753945042999,6.61936293,181.83,181.82,0.06]
[1753945043202,3.71495993,181.83,181.82,38.44]
[1753945045705,4.41495993,181.83,181.82,38.44]
[1753945046997,3.71495993,181.83,181.82,38.44]
[1753945048409,4.41495993,181.83,181.82,38.44]
[1753945048589,4.41495993,181.83,181.82,0.06]
[1753945048900,4.41495993,181.83,181.82,38.44]
[1753945049105,30.41495993,181.83,181.82,0.06]
[1753945049312,40.55830237,181.83,181.82,0.06]
[1753945050201,35.91460245,181.83,181.82,0.06]
[1753945050716,38.11912745,181.83,181.82,0.06]
[1753945051491,46.88503721,181.83,181.82,0.06]
[1753945051693,42.76282737,181.83,181.82,0.06]
[1753945052117,38.11912745,181.83,181.82,0.06]
[1753945052412,42.76282737,181.83,181.82,0.06]
[1753945052897,37.26318485,181.83,181.82,0.06]
[1753945054816,32.61948493,181.83,181.82,0.06]
[1753945059397,38.11912745,181.83,181.82,0.06]
[1753945061221,38.14912745,181.83,181.82,0.06]
[1753945062420,42.79282737,181.83,181.82,0.06]
[1753945063197,38.14912745,181.83,181.82,0.06]
[1753945064020,42.79282737,181.83,181.82,0.06]
[1753945065925,37.29318485,181.83,181.82,0.06]
[1753945066108,32.64948493,181.83,181.82,0.06]
[1753945067424,5.94948493,181.83,181.82,0.06]
[1753945068005,6.64948493,181.83,181.82,0.06]
[1753945072828,12.14912745,181.83,181.82,0.06]
[1753945074827,38.14912745,181.83,181.82,0.06]
[1753945085431,42.26884306,181.83,181.82,0.06]
[1753945086824,42.26972238,181.83,181.82,0.06]
[1753945087935,16.26972238,181.83,181.82,0.06]
[1753945088243,20.3906789,181.83,181.81,0.06]
[1753945088418,12.47090822,181.82,181.81,0.06]
[1753945088615,13.18090822,181.82,181.81,0.06]
[1753945088820,15.38579722,181.82,181.81,0.06]
[1753945089828,20.88606324,181.82,181.81,0.06]
[1753945090037,20.87966768,181.82,181.81,0.06]
[1753945091149,20.88012517,181.82,181.81,0.06]
[1753945093851,20.88231367,181.82,181.81,0.06]
[1753945094550,16.24680382,181.82,181.81,0.06]
[1753945094739,58.75092735,181.82,181.81,0.06]
[1753945097433,58.75092735,181.82,181.8,0.06]
[1753945097632,38.66609335,181.81,181.8,0.06]
[1753945097826,12.66609335,181.81,181.8,0.06]
[1753945098650,18.16634086,181.81,181.8,0.06]
[1753945101153,20.88344978,181.81,181.8,0.06]
[1753945103932,25.00655183,181.81,181.8,0.06]
[1753945104138,26.0,181.8,181.79,0.06]
[1753945104376,77.5291378,181.8,181.79,0.06]
[1753945104965,79.7342698,181.8,181.79,0.06]
[1753945105138,81.11125791,181.8,181.79,0.06]
[1753945105964,85.23456126,181.8,181.79,0.06]
[1753945106863,81.11125791,181.8,181.79,0.06]
[1753945107569,75.61070786,181.8,181.79,0.06]
[1753945107763,79.73366681,181.8,181.79,0.06]
[1753945108145,75.61070786,181.8,181.79,0.06]
[1753945108858,75.61271147,181.8,181.79,0.06]
[1753945109064,79.73550903,181.8,181.79,0.06]
[1753945109367,41.35550903,181.8,181.79,0.06]
[1753945109547,79.73550903,181.8,181.79,0.06]
[1753945110243,75.09796488,181.8,181.79,0.06]
[1753945111258,75.09744977,181.8,181.79,0.06]
[1753945111866,80.59799982,181.8,181.79,0.06]
[1753945112362,76.47571737,181.8,181.79,0.06]
[1753945112667,80.59783477,181.8,181.79,0.06]
[1753945113267,75.09728472,181.8,181.79,0.06]
[1753945113472,36.03728472,181.8,181.79,0.73]
[1753945113769,33.83215272,181.8,181.79,0.73]
[1753945113943,7.83215272,181.8,181.79,0.73]
[1753945114549,33.83215272,181.8,181.79,0.73]
[1753945118484,33.83215272,181.8,181.79,0.06]
[1753945118978,39.33270277,181.8,181.79,0.06]
[1753945119282,44.65024692,181.8,181.79,0.06]
[1753945119469,46.85537992,181.8,181.79,0.06]
[1753945121891,20.85537992,181.8,181.79,0.06]
[1753945122098,43.31747946,181.8,181.78,0.06]
[1753945122388,46.89215272,181.79,181.78,0.06]
[1753945122693,56.51643245,181.79,181.78,0.06]
[1753945122993,55.83643245,181.79,181.78,0.06]
[1753945123176,56.51700883,181.79,181.78,0.06]
[1753945124082,58.72250583,181.79,181.78,0.06]
[1753945124696,75.5071898,181.79,181.78,0.06]
[1753945124861,75.5071898,181.79,181.76,0.06]
[1753945124862,26.0,181.77,181.76,0.06]
[1753945125060,82.51971416,181.77,181.76,0.06]
[1753945125296,83.19971416,181.77,181.76,0.06]
[1753945126271,88.70117204,181.77,181.76,0.06]
[1753945126473,84.71444576,181.77,181.76,0.06]
[1753945126779,101.49912973,181.77,181.76,0.06]
[1753945127096,101.49912973,181.77,181.74,0.06]
[1753945127097,16.78468397,181.76,181.74,0.06]
[1753945127392,67.10990895,181.75,181.74,0.06]
[1753945127572,67.78990895,181.75,181.74,0.06]
[1753945128183,26.0,181.72,181.69,0.06]
[1753945128495,46.2086411,181.71,181.69,0.06]
[1753945128691,33.8286411,181.7,181.69,0.06]
[1753945128995,34.5086411,181.7,181.69,0.06]
[1753945129188,10.0348681,181.7,181.69,0.06]
[1753945129497,19.45676131,181.7,181.69,0.06]
[1753945130290,20.84766125,181.7,181.69,0.06]
[1753945130775,20.84766125,181.7,181.69,1e-08]
[1753945130776,37.11263605,181.7,181.69,1e-08]
[1753945130981,55.33996949,181.7,181.69,1e-08]
[1753945131181,43.28492382,181.7,181.69,1e-08]
[1753945131400,47.11263605,181.7,181.69,1e-08]
[1753945131894,37.11263605,181.7,181.69,1e-08]
[1753945132097,26.0,181.68,181.67,0.06]
[1753945132293,72.2086411,181.68,181.67,0.06]
[1753945132489,78.38282427,181.68,181.67,0.06]
[1753945134586,80.58966027,181.68,181.67,0.06]
[1753945135195,5.91687132,181.68,181.67,0.06]
[1753945135387,44.29687132,181.68,181.67,0.72]
[1753945135587,70.29687132,181.68,181.67,0.72]
[1753945135780,44.29687132,181.68,181.67,0.72]
[1753945136705,70.29687132,181.68,181.67,0.72]
[1753945138194,75.80105449,181.68,181.67,0.06]
[1753945138588,73.59421849,181.68,181.67,0.06]
[1753945142212,69.88418317,181.68,181.67,0.06]
[1753945142509,73.5668334,181.68,181.67,0.06]
[1753945143093,74.2368334,181.68,181.67,0.06]
[1753945143689,48.2368334,181.68,181.67,0.06]
[1753945146016,50.4433034,181.68,181.67,0.06]
[1753945151697,49.7733034,181.68,181.67,0.06]
[1753945156330,50.4433034,181.68,181.67,0.06]
[1753945157321,5.88912023,181.68,181.67,0.06]
[1753945157511,0.03,181.69,181.67,0.72]
[1753945157709,26.0,181.68,181.67,0.72]
[1753945164524,29.69496956,181.68,181.67,0.72]
[1753945165029,29.69496956,181.68,181.67,0.06]
[1753945165228,30.37496956,181.68,181.67,0.06]
[1753945165833,9.87915273,181.68,181.67,0.06]
[1753945166039,29.69496956,181.68,181.67,0.72]
[1753945166234,35.87915273,181.68,181.67,0.06]
[1753945167235,39.99209068,181.68,181.67,0.06]
[1753945167919,39.99232504,181.68,181.67,0.06]
[1753945168315,39.99446841,181.68,181.67,0.06]
[1753945168536,44.61364325,181.68,181.67,0.06]
[1753945168839,39.99446841,181.68,181.65,0.06]
[1753945169035,4.63172706,181.66,181.65,0.06]
[1753945169240,8.32669662,181.66,181.65,0.06]
[1753945169431,13.12514157,181.66,181.65,0.06]
[1753945170140,14.51148578,181.66,181.65,0.06]
[1753945171842,19.04334532,181.66,181.65,0.06]
[1753945172035,23.16492499,181.66,181.65,0.06]
[1753945172336,27.28650466,181.66,181.65,0.06]
[1753945172530,23.16571137,181.66,181.65,0.06]
[1753945172838,19.04334532,181.66,181.65,0.06]
[1753945173045,14.41161826,181.66,181.65,0.06]
[1753945173630,22.65817188,181.66,181.65,0.06]
[1753945174646,147.3,181.65,181.64,0.2]
[1753945174820,198.32181901,181.65,181.64,0.2]
[1753945175942,203.82691122,181.65,181.64,0.2]
[1753945176628,206.03399122,181.65,181.64,0.2]
[1753945177132,58.73399122,181.65,181.64,0.2]
[1753945177325,64.90627899,181.65,181.64,0.2]
[1753945178137,67.7798416,181.65,181.64,0.2]
[1753945178425,61.60686412,181.65,181.64,0.2]
[1753945179546,63.66740564,181.65,181.64,0.2]
[1753945179843,147.04,181.62,181.57,0.2]
[1753945180147,50.85337246,181.62,181.57,0.86]
[1753945180450,51.57207044,181.62,181.57,0.86]
[1753945181653,63.49208864,181.62,181.57,0.86]
[1753945181943,25.05208864,181.62,181.57,0.86]
[1753945182140,63.49208864,181.62,181.57,0.86]
[1753945182728,68.12790444,181.62,181.57,0.2]
[1753945182923,68.12790444,181.62,181.57,0.86]
[1753945183331,68.12790444,181.62,181.57,0.2]
[1753945183538,67.60872218,181.62,181.57,0.2]
[1753945183748,26.0,181.59,181.57,0.2]
[1753945183936,46.25625464,181.58,181.57,0.2]
[1753945185951,51.76346909,181.58,181.57,0.2]
[1753945187953,46.25625464,181.58,181.57,0.2]
[1753945188131,46.25625464,181.58,181.57,0.86]
[1753945188334,42.13496956,181.58,181.57,0.86]
[1753945188542,189.43496956,181.58,181.57,0.2]
[1753945191242,150.99496956,181.58,181.57,0.2]
[1753945191444,189.41496956,181.58,181.57,0.2]
[1753945193456,150.99496956,181.58,181.57,0.2]
[1753945193761,189.41496956,181.58,181.57,0.2]
[1753945199465,185.72,181.58,181.57,0.2]
[1753945199664,186.44,181.58,181.57,0.2]
[1753945200170,0.72,181.58,181.57,0.2]
[1753945200342,39.14,181.58,181.57,0.2]
[1753945200671,38.42,181.58,181.57,0.2]
[1753945200850,0.72,181.59,181.57,0.2]
[1753945201172,38.42,181.58,181.57,0.2]
[1753945201747,38.42,181.58,181.57,0.88]
[1753945203164,26.0,181.58,181.57,0.88]
[1753945205654,0.72,181.58,181.57,0.2]
[1753945206251,4.41713951,181.58,181.57,0.2]
[1753945206975,8.52441307,181.58,181.57,0.2]
[1753945207348,81.31872181,181.56,181.54,27.91351176]
[1753945207547,81.31872181,181.56,181.51,27.74130601]
[1753945207777,38.42,181.56,181.51,28.42130601]
[1753945208269,41.20375544,181.56,181.51,28.42130601]
[1753945208472,2.78375544,181.56,181.51,28.42130601]
[1753945208673,38.42,181.57,181.51,28.42130601]
[1753945208857,4.11012766,181.56,181.51,27.74130601]
[1753945209373,3.70192555,181.56,181.54,27.91351176]
[1753945209554,1e-08,181.55,181.51,27.74130601]
[1753945209759,1e-08,181.55,181.51,28.42130601]
[1753945210068,3.70192555,181.56,181.51,28.42130601]
[1753945210270,130.75809666,181.55,181.51,27.74130601]
[1753945210462,3.70192555,181.54,181.51,27.74130601]
[1753945211060,150.82414593,181.55,181.51,27.74130601]
[1753945211449,134.28223572,181.55,181.52,53.96035934]
[1753945212266,4.11488018,181.54,181.52,53.96035934]
[1753945213175,38.42,181.55,181.51,27.74130601]
[1753945213473,4.11606566,181.54,181.51,27.74130601]
[1753945213664,37.04425554,181.55,181.51,27.74130601]
[1753945214677,14.98838442,181.55,181.51,27.74130601]
[1753945215180,2.76241688,181.56,181.51,27.74130601]
[1753945215373,0.50340917,181.55,181.53,17.07117819]
[1753945215574,147.3,181.54,181.53,45.03079632]
[1753945217168,108.70222554,181.54,181.51,27.74130601]
[1753945218267,86.64635442,181.54,181.51,27.74130601]
[1753945218583,86.64635442,181.54,181.53,16.56589]
[1753945219487,86.64635442,181.54,181.53,44.52550813]
[1753945220162,64.5904833,181.54,181.52,53.96035934]
[1753945220989,48.04857996,181.54,181.53,0.69]
[1753945221168,173.29270368,181.54,181.53,0.69]
[1753945222284,151.23683256,181.54,181.53,0.69]
[1753945222466,151.23683256,181.54,181.52,27.96035934]
[1753945222994,151.23683256,181.54,181.51,27.74130601]
[1753945223181,129.18096144,181.54,181.51,27.74130601]
[1753945223369,1e-08,181.53,181.51,27.74130601]
[1753945224799,12.87547577,181.56,181.53,0.67]
[1753945224995,26.0,181.54,181.53,0.67]
[1753945225574,30.11121977,181.54,181.53,28.62961813]
[1753945226088,4.11121977,181.54,181.51,27.74130601]
[1753945226294,12.87547577,181.56,181.53,32.07013449]
[1753945226682,10.0,181.55,181.53,32.07013449]
[1753945227393,2.0551517,181.54,181.53,32.07013449]
[1753945227777,10.0,181.55,181.53,32.07013449]
[1753945227982,2.0551517,181.54,181.53,32.07013449]
[1753945228197,26.0,181.54,181.52,27.96035934]
[1753945228996,9.45809666,181.54,181.52,27.96035934]
[1753945229183,2.87547577,181.56,181.52,27.96035934]
[1753945230783,2.87547577,181.56,181.52,28.65035934]
[1753945230993,2.87547577,181.56,181.51,27.74130601]
[1753945231197,2.87547577,181.56,181.51,28.43130601]
[1753945232891,2.87547577,181.56,181.53,147.29999999]
[1753945233108,2.43950279,181.56,181.53,147.29999999]
[1753945233982,2.43950279,181.56,181.52,27.96035934]
[1753945234995,2.43950279,181.56,181.52,0.69]
[1753945235172,2.43950279,181.56,181.53,27.95961813]
[1753945235375,6.13705425,181.56,181.53,27.95961813]
[1753945235891,6.13705425,181.56,181.52,28.65035934]
[1753945237195,6.13705425,181.56,181.52,27.96035934]
[1753945237385,6.13705425,181.56,181.53,0.69]
[1753945238500,4.10893616,181.55,181.53,0.69]
[1753945238688,7.80648762,181.55,181.53,0.69]
[1753945238892,4.10893616,181.54,181.53,0.69]
[1753945239570,4.10893616,181.54,181.52,0.69]
[1753945239772,4.10893616,181.54,181.51,27.74130601]
[1753945240991,4.10893616,181.54,181.51,28.43130601]
[1753945241592,4.10893616,181.54,181.51,27.74130601]
[1753945242395,4.10893616,181.54,181.51,28.43130601]
[1753945242897,1e-08,181.53,181.51,28.43130601]
[1753945243105,54.97,181.54,181.51,28.43130601]
[1753945244180,57.84587494,181.54,181.51,28.43130601]
[1753945244805,19.40587494,181.54,181.52,28.65035934]
[1753945245104,19.40587494,181.54,181.53,0.69]
[1753945246180,2.87587494,181.54,181.53,0.69]
[1753945246383,4.32116165,181.57,181.53,0.69]
[1753945246600,38.51,181.58,181.53,0.69]
[1753945246921,2.87512331,181.57,181.53,0.69]
[1753945247417,16.53,181.56,181.53,0.69]
[1753945248513,2.87512331,181.57,181.53,0.69]
[1753945248801,4.37448849,181.58,181.54,16.78468397]
[1753945249310,4.37448849,181.58,181.55,0.69]
[1753945259915,4.37448849,181.58,181.56,16.78468397]
[1753945260124,4.37448849,181.58,181.57,17.45468397]
[1753945260608,3.74068469,181.6,181.58,16.78468397]
[1753945260806,0.03,181.63,181.59,65.22468397]
[1753945261117,0.03,181.63,181.6,27.45468397]
[1753945261625,0.03,181.63,181.62,10.0]
[1753945262105,0.03,181.63,181.62,10.67]
[1753945262303,0.03,181.63,181.62,27.45468397]
[1753945263118,0.03,181.63,181.62,65.93468397]
[1753945268023,0.03,181.63,181.62,65.91468397]
[1753945269317,0.03,181.63,181.62,27.45468397]
[1753945269525,0.03,181.63,181.62,65.89468397]
[1753945271816,0.03,181.63,181.62,55.89468397]
[1753945272201,0.03,181.63,181.62,55.22468397]
[1753945272732,0.03,181.63,181.62,55.89468397]
[1753945274302,0.03,181.63,181.62,65.89468397]
[1753945277627,0.03,181.63,181.62,55.89468397]
[1753945277805,0.03,181.63,181.62,65.89468397]
[1753945284202,0.03,181.63,181.62,26.78468397]
[1753945284411,0.03,181.63,181.62,16.78468397]
[1753945284610,0.03,181.63,181.62,55.20468397]
[1753945287444,0.03,181.63,181.62,55.87468397]
[1753945288035,0.03,181.63,181.62,65.87468397]
[1753945290649,0.03,181.63,181.62,16.78468397]
[1753945290960,0.03,181.63,181.62,65.22468397]
[1753945291876,0.03,181.63,181.62,55.22468397]
[1753945293560,0.03,181.63,181.62,65.22468397]
[1753945293858,0.03,181.63,181.62,55.22468397]
[1753945294064,0.03,181.63,181.62,16.78468397]
[1753945294242,0.03,181.63,181.62,55.20468397]
[1753945294944,0.03,181.63,181.62,55.87468397]
[1753945295739,0.03,181.63,181.62,65.87468397]
[1753945301064,0.03,181.63,181.62,71.38068551]
[1753945301249,0.03,181.63,181.62,65.87468397]
[1753945301645,0.03,181.63,181.62,27.45468397]
[1753945301851,0.03,181.63,181.62,66.11468397]
[1753945307642,0.03,181.63,181.62,66.09468397]
[1753945312068,0.03,181.63,181.62,66.07468397]
[1753945314574,0.03,181.63,181.62,32.37283938]
[1753945314749,0.03,181.63,181.62,70.99283938]
[1753945315570,0.03,181.63,181.62,66.07468397]
[1753945315774,0.03,181.63,181.62,70.99283938]
[1753945317380,0.03,181.63,181.62,66.07468397]
[1753945317575,0.03,181.63,181.62,65.38468397]
[1753945317768,0.03,181.63,181.62,26.78468397]
[1753945317984,0.03,181.63,181.62,65.38468397]
[1753945320515,0.74,181.63,181.62,16.78468397]
[1753945320687,0.74,181.63,181.6,0.06]
[1753945320986,0.74,181.63,181.61,55.36468397]
[1753945321891,26.0,181.62,181.61,55.36468397]
[1753945322195,30.42264019,181.62,181.61,55.36468397]
[1753945322364,4.42264019,181.62,181.61,55.36468397]
[1753945322564,0.71,181.62,181.61,55.36468397]
[1753945325989,6.21600154,181.62,181.61,55.36468397]
[1753945326299,35.92864173,181.62,181.61,55.36468397]
[1753945326695,9.92864173,181.62,181.61,55.36468397]
[1753945326904,35.92864173,181.62,181.61,55.36468397]
[1753945327106,35.92864173,181.62,181.61,38.58]
[1753945327477,9.92864173,181.62,181.61,38.58]
[1753945328378,35.92864173,181.62,181.61,38.58]
[1753945328574,9.92864173,181.62,181.61,38.58]
[1753945328774,35.92864173,181.62,181.61,38.58]
[1753945329474,9.92864173,181.62,181.61,38.58]
[1753945330088,35.92864173,181.62,181.61,38.58]
[1753945330697,35.92864173,181.62,181.6,0.06]
[1753945330698,9.92864173,181.62,181.6,0.06]
[1753945331001,4.42264019,181.61,181.6,0.06]
[1753945332990,0.71,181.61,181.6,0.06]
[1753945333184,3.71264019,181.61,181.6,0.06]
[1753945333376,4.42264019,181.61,181.6,0.06]
[1753945336205,7.72642302,181.61,181.6,0.06]
[1753945338507,7.01642302,181.61,181.6,0.06]
[1753945339302,7.72642302,181.61,181.6,0.06]
[1753945341194,24.28591302,181.61,181.6,0.06]
[1753945342307,50.28591302,181.61,181.6,0.06]
[1753945342498,24.28591302,181.61,181.6,0.06]
[1753945342909,49.57591302,181.61,181.6,0.06]
[1753945343311,23.57591302,181.61,181.6,0.06]
[1753945344489,20.27213019,181.61,181.6,0.06]
[1753945345093,46.27213019,181.61,181.6,0.06]
[1753945345292,42.55949,181.61,181.6,0.06]
[1753945345793,16.55949,181.61,181.6,0.06]
[1753945346210,46.95612624,181.61,181.6,0.06]
[1753945346416,20.95612624,181.61,181.6,0.06]
[1753945347314,46.95612624,181.61,181.6,0.06]
[1753945347510,20.98612624,181.61,181.6,0.06]
[1753945349011,46.98612624,181.61,181.6,0.06]
[1753945349213,20.98612624,181.61,181.6,0.06]
[1753945349603,46.28612624,181.61,181.6,0.06]
[1753945349801,20.28612624,181.61,181.6,0.06]
[1753945354118,20.28808484,181.61,181.6,0.06]
[1753945354329,46.28808484,181.61,181.6,0.06]
[1753945354538,20.28808484,181.61,181.6,0.06]
[1753945355846,20.98808484,181.61,181.6,0.06]
[1753945356527,46.98808484,181.61,181.6,0.06]
[1753945356699,20.98808484,181.61,181.6,0.06]
[1753945357805,46.98808484,181.61,181.6,0.06]
[1753945358304,20.98808484,181.61,181.6,0.06]
[1753945358528,46.98808484,181.61,181.6,0.06]
[1753945358819,20.98808484,181.61,181.6,0.06]
[1753945358994,46.98808484,181.61,181.6,0.06]
[1753945359198,20.98808484,181.61,181.6,0.06]
[1753945359418,46.98808484,181.61,181.6,0.06]
[1753945359726,20.98808484,181.61,181.6,0.06]
[1753945360611,46.98808484,181.61,181.6,0.06]
[1753945361513,20.98808484,181.61,181.6,0.06]
[1753945362141,37.54808484,181.61,181.6,0.06]
[1753945362727,26.0,181.59,181.58,0.06]
[1753945362933,29.69859484,181.59,181.58,0.06]
[1753945363135,6.45911625,181.59,181.58,0.06]
[1753945363333,23.02317825,181.59,181.58,0.06]
[1753945364341,20.96265684,181.59,181.58,0.06]
[1753945364943,23.02473945,181.59,181.58,0.06]
[1753945365230,20.96265684,181.59,181.58,0.06]
[1753945365753,23.02473945,181.59,181.58,0.06]
[1753945366542,20.96265684,181.59,181.58,0.06]
[1753945367754,23.02519786,181.59,181.58,0.06]
[1753945369062,20.96265684,181.59,181.58,0.06]
[1753945370136,23.02577847,181.59,181.58,0.06]
[1753945373036,22.32577847,181.59,181.58,0.06]
[1753945374856,38.88577847,181.59,181.58,0.06]
[1753945375569,38.88571356,181.59,181.58,0.06]
[1753945376041,22.32571356,181.59,181.58,0.72]
[1753945379470,22.32571356,181.59,181.58,0.06]
[1753945382760,23.02571356,181.59,181.58,0.06]
[1753945382939,25.90116872,181.59,181.58,0.06]
[1753945383666,26.0,181.57,181.56,0.06]
[1753945383840,26.0,181.57,181.56,0.72]
[1753945383841,5.76165156,181.57,181.56,0.72]
[1753945384340,22.32662756,181.57,181.56,0.72]
[1753945386143,22.32662756,181.57,181.56,0.06]
[1753945388769,26.0,181.56,181.55,0.66]
[1753945388953,31.76103734,181.56,181.53,2.93907533]
[1753945389139,31.76102855,181.55,181.53,3.59907533]
[1753945389459,153.76102855,181.54,181.52,27.96035934]
[1753945389659,153.76102855,181.54,181.51,0.06]
[1753945389660,147.3,181.54,181.51,27.33977691]
[1753945389849,147.3,181.54,181.51,27.48695427]
[1753945390041,185.76,181.54,181.51,27.48695427]
[1753945390440,185.76,181.54,181.51,27.98144452]
[1753945390651,185.76,181.54,181.5,27.74881669]
[1753945390842,185.76,181.54,181.5,27.9365162]
[1753945391565,185.76,181.54,181.52,27.14049814]
[1753945391749,0.08,181.53,181.5,27.13053075]
[1753945391950,0.08,181.53,181.5,27.99511296]
[1753945392147,185.76,181.54,181.5,27.99511296]
[1753945392345,185.84,181.54,181.5,27.99511296]
[1753945392662,1e-08,181.53,181.5,27.13945759]
[1753945392867,57.78219915,181.55,181.5,27.79945759]
[1753945393057,1e-08,181.52,181.5,27.79945759]
[1753945393254,57.78219915,181.55,181.5,27.79945759]
[1753945393662,35.72632803,181.55,181.5,27.79945759]
[1753945393962,38.53180536,181.55,181.5,27.79945759]
[1753945394472,5.518,181.54,181.5,27.79945759]
[1753945394681,19.36547733,181.55,181.5,27.79945759]
[1753945395855,38.48,181.57,181.5,27.79945759]
[1753945396046,16.56,181.55,181.5,27.79945759]
[1753945396868,1e-08,181.55,181.5,27.79945759]
[1753945397063,13.89207544,181.55,181.5,27.79945759]
[1753945397545,38.48,181.57,181.5,27.79945759]
[1753945397747,26.0,181.54,181.5,27.79945759]
[1753945398163,16.56,181.56,181.5,27.79945759]
[1753945398362,2.72554454,181.57,181.5,27.79945759]
[1753945398568,16.78468398,181.58,181.5,27.79945759]
[1753945399175,16.56,181.57,181.5,27.79945759]
[1753945399373,16.56,181.57,181.51,0.66]
[1753945399684,16.56,181.57,181.52,27.85468808]
[1753945401359,16.56,181.57,181.52,0.7]
[1753945401594,3.70112672,181.56,181.54,27.07702861]
[1753945401754,20.26112672,181.56,181.54,27.07702861]
[1753945402083,16.56,181.56,181.54,27.07702861]
[1753945402385,16.56,181.56,181.5,27.01296359]
[1753945403384,2.75826866,181.57,181.5,27.01296359]
[1753945403557,16.78468398,181.58,181.5,27.71296359]
[1753945403751,4.93141463,181.51,181.5,27.71296359]
[1753945404060,2.87637039,181.56,181.5,27.71296359]
[1753945405368,2.87637039,181.56,181.51,0.7]
[1753945405594,2.87637039,181.56,181.52,27.85468808]
[1753945405787,19.43637039,181.56,181.52,27.85468808]
[1753945407288,19.61098037,181.58,181.52,28.55468808]
[1753945407484,16.56000001,181.57,181.52,28.55468808]
[1753945408383,16.56,181.57,181.52,28.55468808]
[1753945408767,16.56,181.57,181.52,27.85468808]
[1753945408964,16.56,181.57,181.53,0.7]
[1753945409176,16.56,181.57,181.54,27.07702861]
[1753945409477,39.04726057,181.58,181.54,27.07702861]
[1753945410183,39.04726057,181.58,181.53,28.06165225]
[1753945411698,39.04726057,181.58,181.53,27.36165225]
[1753945412397,39.04726057,181.58,181.52,28.55468808]
[1753945413091,39.04726057,181.58,181.52,27.85468808]
[1753945413277,38.48,181.59,181.5,27.01296359]
[1753945413578,16.56,181.58,181.5,27.77296359]
[1753945413777,19.37071773,181.58,181.5,27.77296359]
[1753945413979,16.56,181.56,181.5,27.77296359]
[1753945414299,3.69936069,181.57,181.5,27.77296359]
[1753945414300,0.03,181.58,181.5,27.77296359]
[1753945414483,16.59,181.58,181.5,27.77296359]
[1753945415388,16.78468397,181.57,181.5,27.77296359]
[1753945416396,16.78468397,181.57,181.5,32.98296359]
[1753945417301,69.20107305,181.58,181.57,16.78468397]
[1753945419291,33.34468397,181.57,181.55,25.14194415]
[1753945419496,38.48,181.56,181.55,25.14194415]
[1753945419999,55.04,181.56,181.55,25.14194415]
[1753945420182,104.94468397,181.56,181.55,47.55618435]
[1753945420770,104.94468397,181.56,181.55,42.03718435]
[1753945420994,104.94468397,181.56,181.55,14.10394415]
[1753945421204,71.6,181.56,181.55,0.22468397]
[1753945421379,104.94468397,181.56,181.55,0.22468397]
[1753945421575,88.38468397,181.56,181.55,0.22468397]
[1753945421986,88.38468397,181.56,181.55,28.15792417]
[1753945422190,98.52912667,181.56,181.55,28.15792417]
[1753945422389,110.46268397,181.56,181.55,28.15792417]
[1753945422591,110.46268397,181.56,181.53,44.44237722]
[1753945422592,33.34468397,181.54,181.53,44.44237722]
[1753945422797,49.90468397,181.54,181.53,0.22468397]
[1753945423000,49.90468397,181.54,181.53,27.88237722]